[Event "Titled Tuesday Blitz August 3 2021"]
[White "Ivanchuk, Vasyl"]
[Black "Ulko, Jaroslav"]
[WhiteFideId "14100010"]
[BlackFideId "4116658"]
[WhiteElo "2710"]
[BlackElo "2304"]
[Result "0-1"]
[Round "11"]
[TimeControl "180+1"]
[Date "2021.08.03"]
[WhiteClock "0:00:01"]
[BlackClock "0:00:44"]

1. e4 {[%clk 0:03:00]}  c6 {[%clk 0:02:59]} 2. Nc3 {[%clk 0:02:56]}  d5 {[%clk 0:02:59]} 3. Nf3 {[%clk 0:02:56]}  Bg4 {[%clk 0:02:59]} 4. h3 {[%clk 0:02:56]}  Bxf3 {[%clk 0:02:59]} 5. Qxf3 {[%clk 0:02:56]}  Nf6 {[%clk 0:03:00]} 6. d3 {[%clk 0:02:55]}  e6 {[%clk 0:03:00]} 7. a3 {[%clk 0:02:53]}  d4 {[%clk 0:02:51]} 8. Nb1 {[%clk 0:02:52]}  c5 {[%clk 0:02:51]} 9. g3 {[%clk 0:02:42]}  Nc6 {[%clk 0:02:51]} 10. Bg2 {[%clk 0:02:40]}  g6 {[%clk 0:02:36]} 11. h4 {[%clk 0:02:34]}  h5 {[%clk 0:02:35]} 12. Bg5 {[%clk 0:02:31]}  Be7 {[%clk 0:02:34]} 13. Nd2 {[%clk 0:02:30]}  e5 {[%clk 0:02:33]} 14. Bh3 {[%clk 0:02:15]}  Nh7 {[%clk 0:02:29]} 15. Bh6 {[%clk 0:02:01]}  Bf8 {[%clk 0:02:29]} 16. Bxf8 {[%clk 0:01:58]}  Kxf8 {[%clk 0:02:26]} 17. Be6 {[%clk 0:01:48]}  Qf6 {[%clk 0:02:20]} 18. Bd5 {[%clk 0:01:44]}  Rc8 {[%clk 0:02:15]} 19. Ke2 {[%clk 0:01:39]}  Kg7 {[%clk 0:02:15]} 20. Nc4 {[%clk 0:01:18]}  Qe7 {[%clk 0:02:09]} 21. Bxc6 {[%clk 0:00:55]}  Rxc6 {[%clk 0:02:09]} 22. a4 {[%clk 0:00:55]}  Nf6 {[%clk 0:02:07]} 23. Ra3 {[%clk 0:00:49]}  Ng4 {[%clk 0:02:02]} 24. Qg2 {[%clk 0:00:49]}  Re8 {[%clk 0:01:29]} 25. Rb3 {[%clk 0:00:46]}  b6 {[%clk 0:01:24]} 26. a5 {[%clk 0:00:45]}  Qc7 {[%clk 0:01:21]} 27. Ra1 {[%clk 0:00:40]}  Rf6 {[%clk 0:01:16]} 28. f3 {[%clk 0:00:40]}  Ne3 {[%clk 0:01:16]} 29. Nxe3 {[%clk 0:00:39]}  dxe3 {[%clk 0:01:17]} 30. axb6 {[%clk 0:00:31]}  axb6 {[%clk 0:01:16]} 31. Qg1 {[%clk 0:00:25]}  c4 {[%clk 0:01:16]} 32. Rc3 {[%clk 0:00:26]}  cxd3+ {[%clk 0:01:16]} 33. cxd3 {[%clk 0:00:26]}  Qd7 {[%clk 0:01:14]} 34. Qxe3 {[%clk 0:00:24]}  Qh3 {[%clk 0:01:14]} 35. Qf2 {[%clk 0:00:24]}  Re7 {[%clk 0:01:10]} 36. Ra4 {[%clk 0:00:21]}  Rd6 {[%clk 0:01:09]} 37. Kd2 {[%clk 0:00:15]}  Red7 {[%clk 0:01:05]} 38. Kc2 {[%clk 0:00:14]}  Qh1 {[%clk 0:01:05]} 39. Rb4 {[%clk 0:00:13]}  Ra7 {[%clk 0:01:00]} 40. Rxb6 {[%clk 0:00:11]}  Ra1 {[%clk 0:01:00]} 41. Kb3 {[%clk 0:00:06]}  Qd1+ {[%clk 0:00:58]} 42. Kc4 {[%clk 0:00:05]}  Qa4+ {[%clk 0:00:52]} 43. b4 {[%clk 0:00:04]}  Ra2 {[%clk 0:00:49]} 44. Qc5 {[%clk 0:00:01]}  Rd4+ {[%clk 0:00:44]} 45. Qxd4 {[%clk 0:00:01]}  exd4 {[%clk 0:00:45]} 46. Kxd4 {[%clk 0:00:01]}  Qa7 {[%clk 0:00:44]} 0-1


[Site "https://www.chess.com"]

[Event "Titled Tuesday Blitz August 3 2021"]
[White "Ivanisevic, Ivan"]
[Black "Wei, Yi"]
[WhiteFideId "912417"]
[BlackFideId "8603405"]
[WhiteElo "2499"]
[BlackElo "2686"]
[Result "0-1"]
[Round "11"]
[TimeControl "180+1"]
[Date "2021.08.03"]
[WhiteClock "0:00:16"]
[BlackClock "0:01:30"]

1. d4 {[%clk 0:03:00]}  Nf6 {[%clk 0:02:58]} 2. c4 {[%clk 0:03:01]}  e6 {[%clk 0:02:58]} 3. Nc3 {[%clk 0:03:01]}  Bb4 {[%clk 0:02:58]} 4. g3 {[%clk 0:03:00]}  d5 {[%clk 0:02:58]} 5. Bg2 {[%clk 0:02:59]}  O-O {[%clk 0:02:58]} 6. Nf3 {[%clk 0:02:59]}  dxc4 {[%clk 0:02:58]} 7. O-O {[%clk 0:02:59]}  Nc6 {[%clk 0:02:58]} 8. e4 {[%clk 0:03:00]}  Bxc3 {[%clk 0:02:56]} 9. bxc3 {[%clk 0:03:01]}  Nxe4 {[%clk 0:02:57]} 10. Qc2 {[%clk 0:02:58]}  Nf6 {[%clk 0:02:50]} 11. Bg5 {[%clk 0:02:58]}  h6 {[%clk 0:02:49]} 12. Bh4 {[%clk 0:02:56]}  g5 {[%clk 0:02:41]} 13. Nxg5 {[%clk 0:02:54]}  hxg5 {[%clk 0:02:42]} 14. Bxg5 {[%clk 0:02:55]}  Kg7 {[%clk 0:02:42]} 15. Rae1 {[%clk 0:02:41]}  Ne7 {[%clk 0:02:38]} 16. Qc1 {[%clk 0:02:28]}  Rh8 {[%clk 0:02:34]} 17. Re5 {[%clk 0:02:22]}  Ng6 {[%clk 0:02:28]} 18. f4 {[%clk 0:02:21]}  Qd6 {[%clk 0:02:22]} 19. Bxf6+ {[%clk 0:01:56]}  Kxf6 {[%clk 0:02:22]} 20. Be4 {[%clk 0:01:57]}  Bd7 {[%clk 0:02:04]} 21. Qe3 {[%clk 0:01:34]}  Kg7 {[%clk 0:01:56]} 22. Rg5 {[%clk 0:00:55]}  f5 {[%clk 0:01:54]} 23. Bb1 {[%clk 0:00:50]}  Bc6 {[%clk 0:01:50]} 24. h4 {[%clk 0:00:36]}  Kf7 {[%clk 0:01:34]} 25. Kf2 {[%clk 0:00:30]}  Ne7 {[%clk 0:01:32]} 26. h5 {[%clk 0:00:23]}  Nd5 {[%clk 0:01:32]} 27. Qd2 {[%clk 0:00:21]}  Nf6 {[%clk 0:01:31]} 28. Re1 {[%clk 0:00:16]}  Rxh5 {[%clk 0:01:29]} 29. Rxh5 {[%clk 0:00:16]}  Nxh5 {[%clk 0:01:30]} 0-1


[Site "https://www.chess.com"]

[Event "Titled Tuesday Blitz August 3 2021"]
[White "Khodzhamkuliev, Bahadur"]
[Black "Rodrigue-Lemieux, Shawn"]
[WhiteFideId "24135046"]
[BlackFideId "2620049"]
[WhiteElo "2130"]
[BlackElo "1763"]
[Result "0-1"]
[Round "11"]
[TimeControl "180+1"]
[Date "2021.08.03"]
[WhiteClock "0:00:38"]
[BlackClock "0:01:49"]

1. Nf3 {[%clk 0:03:00]}  g6 {[%clk 0:02:59]} 2. d4 {[%clk 0:02:55]}  Bg7 {[%clk 0:03:00]} 3. c3 {[%clk 0:02:53]}  b6 {[%clk 0:03:01]} 4. Bg5 {[%clk 0:02:52]}  Bb7 {[%clk 0:03:02]} 5. Nbd2 {[%clk 0:02:52]}  h6 {[%clk 0:03:01]} 6. Bh4 {[%clk 0:02:52]}  c5 {[%clk 0:03:02]} 7. e3 {[%clk 0:02:51]}  d6 {[%clk 0:03:02]} 8. Bb5+ {[%clk 0:02:51]}  Nd7 {[%clk 0:03:02]} 9. Qa4 {[%clk 0:02:48]}  a6 {[%clk 0:03:02]} 10. Bd3 {[%clk 0:02:43]}  Nf6 {[%clk 0:02:50]} 11. O-O {[%clk 0:02:35]}  O-O {[%clk 0:02:50]} 12. b4 {[%clk 0:02:23]}  b5 {[%clk 0:02:47]} 13. Qd1 {[%clk 0:02:19]}  Rc8 {[%clk 0:02:47]} 14. a4 {[%clk 0:02:07]}  Nd5 {[%clk 0:02:37]} 15. bxc5 {[%clk 0:01:50]}  dxc5 {[%clk 0:02:29]} 16. axb5 {[%clk 0:01:50]}  Nxc3 {[%clk 0:02:28]} 17. Qb3 {[%clk 0:01:49]}  Nxb5 {[%clk 0:02:27]} 18. Bxb5 {[%clk 0:01:45]}  axb5 {[%clk 0:02:28]} 19. Qxb5 {[%clk 0:01:45]}  Bc6 {[%clk 0:02:28]} 20. Qa5 {[%clk 0:01:46]}  Qxa5 {[%clk 0:02:26]} 21. Rxa5 {[%clk 0:01:47]}  cxd4 {[%clk 0:02:26]} 22. Nxd4 {[%clk 0:01:46]}  Bxd4 {[%clk 0:02:21]} 23. exd4 {[%clk 0:01:46]}  Nf6 {[%clk 0:02:21]} 24. Bxf6 {[%clk 0:01:46]}  exf6 {[%clk 0:02:22]} 25. Rc5 {[%clk 0:01:44]}  Ba8 {[%clk 0:02:20]} 26. Rfc1 {[%clk 0:01:44]}  Rcd8 {[%clk 0:02:19]} 27. Nb3 {[%clk 0:01:37]}  Kg7 {[%clk 0:02:19]} 28. h4 {[%clk 0:01:35]}  h5 {[%clk 0:02:17]} 29. Rc7 {[%clk 0:01:23]}  Rfe8 {[%clk 0:02:17]} 30. Ra7 {[%clk 0:01:03]}  Bd5 {[%clk 0:02:17]} 31. Rc3 {[%clk 0:01:03]}  Re1+ {[%clk 0:02:13]} 32. Kh2 {[%clk 0:01:03]}  Re4 {[%clk 0:02:14]} 33. g3 {[%clk 0:00:47]}  Re1 {[%clk 0:02:11]} 34. f3 {[%clk 0:00:47]}  Rde8 {[%clk 0:02:09]} 35. g4 {[%clk 0:00:42]}  R8e2+ {[%clk 0:02:04]} 36. Kg3 {[%clk 0:00:42]}  hxg4 {[%clk 0:01:53]} 37. Kxg4 {[%clk 0:00:42]}  Rg1+ {[%clk 0:01:50]} 38. Kf4 {[%clk 0:00:38]}  g5+ {[%clk 0:01:49]} 0-1


[Site "https://www.chess.com"]

[Event "Titled Tuesday Blitz August 3 2021"]
[White "Kim, Sergey"]
[Black "Pacheco Lugo, Alejandro Jose"]
[WhiteFideId "13700570"]
[BlackFideId "3903745"]
[WhiteElo "2574"]
[BlackElo "2125"]
[Result "1/2-1/2"]
[Round "11"]
[TimeControl "180+1"]
[Date "2021.08.03"]
[WhiteClock "0:00:24"]
[BlackClock "0:00:10"]

1. d4 {[%clk 0:03:00]}  Nf6 {[%clk 0:02:59]} 2. c4 {[%clk 0:03:00]}  e6 {[%clk 0:02:59]} 3. Nc3 {[%clk 0:02:59]}  Bb4 {[%clk 0:02:59]} 4. Qc2 {[%clk 0:02:59]}  b6 {[%clk 0:02:59]} 5. a3 {[%clk 0:02:59]}  Bxc3+ {[%clk 0:02:58]} 6. Qxc3 {[%clk 0:02:59]}  Ne4 {[%clk 0:02:59]} 7. Qc2 {[%clk 0:02:58]}  Bb7 {[%clk 0:02:59]} 8. Nf3 {[%clk 0:02:58]}  f5 {[%clk 0:02:56]} 9. g3 {[%clk 0:02:58]}  O-O {[%clk 0:02:56]} 10. Bg2 {[%clk 0:02:58]}  d6 {[%clk 0:02:56]} 11. O-O {[%clk 0:02:58]}  Nd7 {[%clk 0:02:56]} 12. Ng5 {[%clk 0:02:58]}  Nxg5 {[%clk 0:02:31]} 13. Bxb7 {[%clk 0:02:57]}  Rb8 {[%clk 0:02:32]} 14. Bg2 {[%clk 0:02:57]}  h6 {[%clk 0:02:30]} 15. b4 {[%clk 0:02:52]}  Nf6 {[%clk 0:02:30]} 16. Bxg5 {[%clk 0:02:44]}  hxg5 {[%clk 0:02:28]} 17. d5 {[%clk 0:02:43]}  Qd7 {[%clk 0:02:24]} 18. dxe6 {[%clk 0:02:37]}  Qxe6 {[%clk 0:02:24]} 19. e3 {[%clk 0:02:36]}  g4 {[%clk 0:02:24]} 20. Rfd1 {[%clk 0:02:29]}  Rbe8 {[%clk 0:02:24]} 21. Rd4 {[%clk 0:02:26]}  Qe5 {[%clk 0:02:18]} 22. Rad1 {[%clk 0:02:25]}  g6 {[%clk 0:02:18]} 23. c5 {[%clk 0:02:19]}  dxc5 {[%clk 0:02:18]} 24. bxc5 {[%clk 0:02:19]}  bxc5 {[%clk 0:02:15]} 25. Rc4 {[%clk 0:02:16]}  Rd8 {[%clk 0:02:12]} 26. Rxd8 {[%clk 0:02:08]}  Rxd8 {[%clk 0:02:11]} 27. Rxc5 {[%clk 0:01:58]}  Rd1+ {[%clk 0:02:04]} 28. Bf1 {[%clk 0:01:47]}  Qd6 {[%clk 0:02:04]} 29. Rxc7 {[%clk 0:01:45]}  Ne8 {[%clk 0:00:53]} 30. Rxa7 {[%clk 0:01:35]}  Kf8 {[%clk 0:00:44]} 31. Qc3 {[%clk 0:01:24]}  Nf6 {[%clk 0:00:27]} 32. Qc8+ {[%clk 0:01:11]}  Ne8 {[%clk 0:00:27]} 33. Qb7 {[%clk 0:01:06]}  Nc7 {[%clk 0:00:12]} 34. Qb8+ {[%clk 0:00:54]}  Ne8 {[%clk 0:00:12]} 35. Qxd6+ {[%clk 0:00:53]}  Nxd6 {[%clk 0:00:13]} 36. a4 {[%clk 0:00:53]}  Ne4 {[%clk 0:00:12]} 37. Kg2 {[%clk 0:00:51]}  Nd2 {[%clk 0:00:11]} 38. Bb5 {[%clk 0:00:49]}  Nf3 {[%clk 0:00:11]} 39. Bf1 {[%clk 0:00:44]}  Nd2 {[%clk 0:00:10]} 40. Be2 {[%clk 0:00:44]}  Re1 {[%clk 0:00:10]} 41. Bb5 {[%clk 0:00:34]}  Nf3 {[%clk 0:00:10]} 42. Bf1 {[%clk 0:00:31]}  Nd2 {[%clk 0:00:10]} 43. Bb5 {[%clk 0:00:29]}  Nf3 {[%clk 0:00:10]} 44. Bf1 {[%clk 0:00:25]}  Nd2 {[%clk 0:00:10]} 45. Bb5 {[%clk 0:00:24]} 1/2-1/2


[Site "https://www.chess.com"]

[Event "Titled Tuesday Blitz August 3 2021"]
[White "Krishnakumar, Sriram"]
[Black "Palchuk, Andrii"]
[WhiteFideId "30915856"]
[BlackFideId "14176688"]
[WhiteElo "2321"]
[BlackElo "2284"]
[Result "0-1"]
[Round "11"]
[TimeControl "180+1"]
[Date "2021.08.03"]
[WhiteClock "0:01:22"]
[BlackClock "0:00:47"]

1. e4 {[%clk 0:03:00]}  c6 {[%clk 0:03:00]} 2. d4 {[%clk 0:02:59]}  d5 {[%clk 0:03:00]} 3. exd5 {[%clk 0:03:00]}  cxd5 {[%clk 0:03:01]} 4. c4 {[%clk 0:03:00]}  Nf6 {[%clk 0:03:01]} 5. Nc3 {[%clk 0:03:01]}  e6 {[%clk 0:03:01]} 6. Nf3 {[%clk 0:02:59]}  Be7 {[%clk 0:03:01]} 7. cxd5 {[%clk 0:02:57]}  Nxd5 {[%clk 0:03:00]} 8. Bd3 {[%clk 0:02:57]}  O-O {[%clk 0:03:00]} 9. O-O {[%clk 0:02:57]}  Nc6 {[%clk 0:02:59]} 10. Re1 {[%clk 0:02:58]}  Bf6 {[%clk 0:02:56]} 11. Be4 {[%clk 0:02:54]}  Nce7 {[%clk 0:02:52]} 12. h4 {[%clk 0:02:51]}  Nf5 {[%clk 0:02:37]} 13. Bg5 {[%clk 0:02:40]}  h6 {[%clk 0:02:20]} 14. Bxf6 {[%clk 0:02:34]}  Nxf6 {[%clk 0:02:11]} 15. d5 {[%clk 0:02:33]}  exd5 {[%clk 0:01:57]} 16. Bxd5 {[%clk 0:02:30]}  Nxd5 {[%clk 0:01:51]} 17. Qxd5 {[%clk 0:02:31]}  Nxh4 {[%clk 0:01:49]} 18. Ne5 {[%clk 0:02:18]}  Be6 {[%clk 0:01:40]} 19. Qxb7 {[%clk 0:02:12]}  Rb8 {[%clk 0:01:36]} 20. Qe4 {[%clk 0:02:11]}  Rxb2 {[%clk 0:01:19]} 21. Na4 {[%clk 0:01:54]}  Rd2 {[%clk 0:01:15]} 22. Nc5 {[%clk 0:01:53]}  Bd5 {[%clk 0:01:07]} 23. Qf4 {[%clk 0:01:23]}  Bxg2 {[%clk 0:01:02]} 24. Nc6 {[%clk 0:01:22]}  Bxc6 {[%clk 0:00:47]} 0-1


[Site "https://www.chess.com"]

[Event "Titled Tuesday Blitz August 3 2021"]
[White "Krivonosov, Oleg"]
[Black "Dang, Hoang Son"]
[WhiteFideId "11600349"]
[BlackFideId "12402435"]
[WhiteElo "2469"]
[BlackElo "2248"]
[Result "1/2-1/2"]
[Round "11"]
[TimeControl "180+1"]
[Date "2021.08.03"]
[WhiteClock "0:00:36"]
[BlackClock "0:01:14"]

1. Nf3 {[%clk 0:03:00]}  Nf6 {[%clk 0:02:59]} 2. c4 {[%clk 0:03:00]}  g6 {[%clk 0:02:59]} 3. Nc3 {[%clk 0:02:59]}  Bg7 {[%clk 0:02:59]} 4. e4 {[%clk 0:02:58]}  O-O {[%clk 0:02:59]} 5. d4 {[%clk 0:02:58]}  d6 {[%clk 0:03:00]} 6. Be2 {[%clk 0:02:58]}  e5 {[%clk 0:03:00]} 7. dxe5 {[%clk 0:02:59]}  dxe5 {[%clk 0:03:00]} 8. Qxd8 {[%clk 0:02:59]}  Rxd8 {[%clk 0:03:01]} 9. Bg5 {[%clk 0:02:58]}  Be6 {[%clk 0:02:59]} 10. Nd5 {[%clk 0:02:54]}  Bxd5 {[%clk 0:02:59]} 11. cxd5 {[%clk 0:02:53]}  c6 {[%clk 0:02:59]} 12. Bc4 {[%clk 0:02:46]}  b5 {[%clk 0:02:59]} 13. Bb3 {[%clk 0:02:44]}  a5 {[%clk 0:02:59]} 14. a3 {[%clk 0:02:41]}  Na6 {[%clk 0:02:48]} 15. dxc6 {[%clk 0:02:19]}  Rd6 {[%clk 0:02:36]} 16. Bxf6 {[%clk 0:02:07]}  Bxf6 {[%clk 0:02:36]} 17. O-O {[%clk 0:02:02]}  Rc8 {[%clk 0:02:33]} 18. Bd5 {[%clk 0:01:48]}  Nc7 {[%clk 0:02:21]} 19. Rfd1 {[%clk 0:01:48]}  Nxd5 {[%clk 0:02:22]} 20. Rxd5 {[%clk 0:01:47]}  Rdxc6 {[%clk 0:02:18]} 21. g3 {[%clk 0:01:45]}  Rc2 {[%clk 0:02:06]} 22. Rxb5 {[%clk 0:01:43]}  Re2 {[%clk 0:02:06]} 23. Re1 {[%clk 0:01:40]}  Rcc2 {[%clk 0:01:56]} 24. Rxe2 {[%clk 0:01:38]}  Rxe2 {[%clk 0:01:57]} 25. Nxe5 {[%clk 0:01:33]}  Rxe4 {[%clk 0:01:55]} 26. f4 {[%clk 0:01:33]}  a4 {[%clk 0:01:54]} 27. Rb4 {[%clk 0:01:19]}  Re2 {[%clk 0:01:52]} 28. Rxa4 {[%clk 0:01:11]}  Rxb2 {[%clk 0:01:51]} 29. Ra8+ {[%clk 0:01:08]}  Kg7 {[%clk 0:01:49]} 30. Ra7 {[%clk 0:01:08]}  Bxe5 {[%clk 0:01:44]} 31. fxe5 {[%clk 0:01:09]}  Re2 {[%clk 0:01:44]} 32. Ra5 {[%clk 0:01:08]}  Kf8 {[%clk 0:01:38]} 33. a4 {[%clk 0:01:05]}  Ke7 {[%clk 0:01:34]} 34. Rb5 {[%clk 0:01:05]}  Ke6 {[%clk 0:01:31]} 35. a5 {[%clk 0:01:05]}  Ra2 {[%clk 0:01:31]} 36. g4 {[%clk 0:01:02]}  h5 {[%clk 0:01:28]} 37. gxh5 {[%clk 0:01:00]}  gxh5 {[%clk 0:01:29]} 38. h4 {[%clk 0:01:00]}  Ra4 {[%clk 0:01:28]} 39. Kg2 {[%clk 0:00:56]}  Rxh4 {[%clk 0:01:28]} 40. Rb6+ {[%clk 0:00:55]}  Kxe5 {[%clk 0:01:26]} 41. Rb5+ {[%clk 0:00:55]}  Kf6 {[%clk 0:01:25]} 42. a6 {[%clk 0:00:55]}  Rg4+ {[%clk 0:01:21]} 43. Kf3 {[%clk 0:00:49]}  Ra4 {[%clk 0:01:22]} 44. Rxh5 {[%clk 0:00:48]}  Kg6 {[%clk 0:01:23]} 45. Rc5 {[%clk 0:00:47]}  Rxa6 {[%clk 0:01:23]} 46. Rc4 {[%clk 0:00:46]}  f5 {[%clk 0:01:18]} 47. Kf4 {[%clk 0:00:45]}  Re6 {[%clk 0:01:17]} 48. Rd4 {[%clk 0:00:45]}  Kf6 {[%clk 0:01:15]} 49. Rb4 {[%clk 0:00:44]}  Rd6 {[%clk 0:01:15]} 50. Rc4 {[%clk 0:00:44]}  Rb6 {[%clk 0:01:15]} 51. Ra4 {[%clk 0:00:43]}  Ke6 {[%clk 0:01:14]} 52. Rc4 {[%clk 0:00:41]}  Rb1 {[%clk 0:01:14]} 53. Rc6+ {[%clk 0:00:40]}  Kd5 {[%clk 0:01:14]} 54. Rc8 {[%clk 0:00:39]}  Rf1+ {[%clk 0:01:15]} 55. Ke3 {[%clk 0:00:38]}  f4+ {[%clk 0:01:13]} 56. Ke2 {[%clk 0:00:38]}  Ra1 {[%clk 0:01:13]} 57. Kf3 {[%clk 0:00:38]}  Ke5 {[%clk 0:01:13]} 58. Re8+ {[%clk 0:00:37]}  Kf5 {[%clk 0:01:12]} 59. Rf8+ {[%clk 0:00:37]}  Kg5 {[%clk 0:01:13]} 60. Rg8+ {[%clk 0:00:37]}  Kf5 {[%clk 0:01:13]} 61. Rf8+ {[%clk 0:00:36]}  Kg5 {[%clk 0:01:14]} 62. Rg8+ {[%clk 0:00:36]}  Kf5 {[%clk 0:01:14]} 63. Rf8+ {[%clk 0:00:36]} 1/2-1/2


[Site "https://www.chess.com"]

[Event "Titled Tuesday Blitz August 3 2021"]
[White "Lazavik, Denis"]
[Black "Petesch, Gabriel"]
[WhiteFideId "13515110"]
[BlackFideId "2032465"]
[WhiteElo "2436"]
[BlackElo "2374"]
[Result "1-0"]
[Round "11"]
[TimeControl "180+1"]
[Date "2021.08.03"]
[WhiteClock "0:01:34"]
[BlackClock "0:00:04"]

1. d4 {[%clk 0:03:00]}  c6 {[%clk 0:02:58]} 2. c4 {[%clk 0:03:00]}  Nf6 {[%clk 0:02:57]} 3. Nf3 {[%clk 0:03:01]}  d6 {[%clk 0:02:55]} 4. Nc3 {[%clk 0:03:01]}  Bf5 {[%clk 0:02:50]} 5. Nh4 {[%clk 0:02:57]}  Bd7 {[%clk 0:02:34]} 6. g3 {[%clk 0:02:52]}  e5 {[%clk 0:02:32]} 7. Bg2 {[%clk 0:02:51]}  Be7 {[%clk 0:02:29]} 8. O-O {[%clk 0:02:51]}  O-O {[%clk 0:02:23]} 9. e4 {[%clk 0:02:49]}  Na6 {[%clk 0:02:11]} 10. h3 {[%clk 0:02:29]}  Re8 {[%clk 0:01:42]} 11. Be3 {[%clk 0:02:27]}  Qa5 {[%clk 0:01:33]} 12. a3 {[%clk 0:02:19]}  Rad8 {[%clk 0:01:17]} 13. b4 {[%clk 0:02:14]}  Qc7 {[%clk 0:01:17]} 14. Qb3 {[%clk 0:02:06]}  exd4 {[%clk 0:01:11]} 15. Bxd4 {[%clk 0:02:06]}  Be6 {[%clk 0:01:12]} 16. Rac1 {[%clk 0:01:51]}  b5 {[%clk 0:01:02]} 17. Nd5 {[%clk 0:01:50]}  bxc4 {[%clk 0:00:48]} 18. Nxc7 {[%clk 0:01:47]}  cxb3 {[%clk 0:00:44]} 19. Nxa6 {[%clk 0:01:48]}  Rc8 {[%clk 0:00:36]} 20. e5 {[%clk 0:01:45]}  dxe5 {[%clk 0:00:19]} 21. Bxe5 {[%clk 0:01:46]}  Nd7 {[%clk 0:00:15]} 22. Bd4 {[%clk 0:01:44]}  Bf6 {[%clk 0:00:13]} 23. Rfd1 {[%clk 0:01:41]}  Ne5 {[%clk 0:00:07]} 24. Nc5 {[%clk 0:01:39]}  Bd5 {[%clk 0:00:03]} 25. Bxd5 {[%clk 0:01:35]}  cxd5 {[%clk 0:00:04]} 26. Bxe5 {[%clk 0:01:34]}  Bxe5 {[%clk 0:00:04]} 27. Nf3 {[%clk 0:01:35]}  Bf6 {[%clk 0:00:04]} 28. Nxb3 {[%clk 0:01:34]} 1-0


[Site "https://www.chess.com"]

[Event "Titled Tuesday Blitz August 3 2021"]
[White "Leitao, Rafael"]
[Black "Svane, Rasmus"]
[WhiteFideId "2101246"]
[BlackFideId "4657101"]
[WhiteElo "2609"]
[BlackElo "2669"]
[Result "1-0"]
[Round "11"]
[TimeControl "180+1"]
[Date "2021.08.03"]
[WhiteClock "0:00:23"]
[BlackClock "0:00:05"]

1. c4 {[%clk 0:03:00]}  Nf6 {[%clk 0:02:59]} 2. Nc3 {[%clk 0:03:00]}  e5 {[%clk 0:02:59]} 3. Nf3 {[%clk 0:02:59]}  Nc6 {[%clk 0:02:59]} 4. e4 {[%clk 0:02:59]}  Bc5 {[%clk 0:02:54]} 5. Nxe5 {[%clk 0:02:58]}  Nxe5 {[%clk 0:02:42]} 6. d4 {[%clk 0:02:58]}  Bb4 {[%clk 0:01:55]} 7. dxe5 {[%clk 0:02:56]}  Nxe4 {[%clk 0:01:55]} 8. Qf3 {[%clk 0:02:53]}  Nxc3 {[%clk 0:01:53]} 9. bxc3 {[%clk 0:02:52]}  Bc5 {[%clk 0:01:51]} 10. Qg3 {[%clk 0:02:28]}  g6 {[%clk 0:01:49]} 11. Bd3 {[%clk 0:02:10]}  d5 {[%clk 0:01:20]} 12. Bg5 {[%clk 0:02:02]}  Be7 {[%clk 0:01:16]} 13. Bxe7 {[%clk 0:02:00]}  Kxe7 {[%clk 0:00:59]} 14. Qh4+ {[%clk 0:01:50]}  Kd7 {[%clk 0:00:38]} 15. Qf4 {[%clk 0:01:35]}  Ke8 {[%clk 0:00:32]} 16. cxd5 {[%clk 0:01:31]}  Qxd5 {[%clk 0:00:27]} 17. Bc4 {[%clk 0:01:27]}  Qd7 {[%clk 0:00:25]} 18. Rd1 {[%clk 0:01:01]}  Qe7 {[%clk 0:00:25]} 19. Bxf7+ {[%clk 0:00:57]}  Kf8 {[%clk 0:00:21]} 20. Bxg6+ {[%clk 0:00:46]}  Kg7 {[%clk 0:00:20]} 21. Be4 {[%clk 0:00:45]}  Rf8 {[%clk 0:00:20]} 22. Qg3+ {[%clk 0:00:46]}  Kh8 {[%clk 0:00:21]} 23. O-O {[%clk 0:00:46]}  Be6 {[%clk 0:00:21]} 24. f4 {[%clk 0:00:46]}  Rae8 {[%clk 0:00:18]} 25. f5 {[%clk 0:00:45]}  Bc4 {[%clk 0:00:19]} 26. f6 {[%clk 0:00:38]}  Qf7 {[%clk 0:00:19]} 27. Rf5 {[%clk 0:00:36]}  Rg8 {[%clk 0:00:19]} 28. Rg5 {[%clk 0:00:36]}  Rxg5 {[%clk 0:00:19]} 29. Qxg5 {[%clk 0:00:36]}  Rg8 {[%clk 0:00:19]} 30. Qh6 {[%clk 0:00:34]}  c6 {[%clk 0:00:19]} 31. Bf5 {[%clk 0:00:33]}  Bd5 {[%clk 0:00:19]} 32. g3 {[%clk 0:00:32]}  Qc7 {[%clk 0:00:13]} 33. Rd4 {[%clk 0:00:25]}  Rf8 {[%clk 0:00:05]} 34. Qxf8+ {[%clk 0:00:23]} 1-0


[Site "https://www.chess.com"]